[Event "Chinese League Division-A 2024"]
[Site "Fuling Chongqing"]
[Date "2024.06.26"]
[Round "1.7"]
[White "Dai, Changren"]
[Black "Lou, Yiping"]
[Result "1-0"]
[ECO "C28"]
[WhiteElo "2502"]
[BlackElo "2442"]
[Annotator "TA"]
[PlyCount "101"]
[EventDate "2024.06.28"]
[EventType "team-tourn"]
[EventCountry "CHN"]
[SourceTitle "playchess.com"]
[Source "ChessBase"]
[SourceQuality "1"]
[TimeControl "40/5400+30:1800+30"]

{[%evp 27,101,82,87,55,88,101,89,78,85,85,83,69,100,88,127,116,111,120,127,120,116,125,123,122,117,118,120,86,122,91,101,89,98,46,38,44,47,48,45,47,38,38,53,49,98,81,81,90,83,99,82,93,88,106,97,97,407,390,468,457,505,498,589,509,678,657,685,300,316,173,337,330,29972,29973,29975,4914]} 1. e4 {[%emt 0:00:02]} e5 {[%emt 0:00:07]} 2. Bc4 {[%emt 0:00:08]} Nc6 {[%emt 0:00:48]} 3. Nc3 {[%emt 0:00:33]} Nf6 {[%emt 0:00:29]} 4. d3 {[%emt 0:00:05]} Na5 {[%emt 0:00:34]} 5. Qf3 {[%emt 0:00:10]} c6 {[%emt 0:01:12]} 6. Nge2 {[%emt 0:01:43] C28: Vienna Game: 2...Nf6 3 Bc4 Nc6.} b5 {[%emt 0:02:02]} 7. Bb3 {[%emt 0:00:07]} b4 {[%emt 0:00:03]} 8. Nd1 {[%emt 0:02:50]} Nxb3 {[%emt 0:04:01]} 9. axb3 {[%emt 0:00:13]} h6 $146 {[%emt 0:00:26]} ({Predecessor:} 9... d5 10. h3 Be6 11. O-O Qd7 12. Bg5 Be7 13. Bxf6 Bxf6 14. Ne3 O-O 15. Ng3 Bd8 {0-1 Micha Massisimo,S (1689)-Alonso Gimenez,M (1925) Foment Martinenc op-A 23rd 2023 (4)}) 10. Ne3 {[%emt 0:05:25]} d5 {[%emt 0:05:38]} 11. h3 {[%emt 0:00:22]} g6 {[%emt 0:14:24]} 12. O-O {[%emt 0:08:30]} Bg7 {[%emt 0:04:54]} 13. Bd2 {[%emt 0:03:14]} dxe4 {[%emt 0:09:32]} 14. dxe4 {[%emt 0:00:10]} (14. Qg3 Nh5 (14... exd3 15. Qxe5+ Kf8 16. Bxb4+ Kg8 17. cxd3 $11) 15. Qh2 exd3 $17) 14... c5 {[%emt 0:00:08]} (14... Qxd2 $2 15. Rfd1 $18) 15. Nc4 {[%emt 0:04:29]} Qc7 {[%emt 0:07:59]} 16. Ra5 {[%emt 0:05:11]} Bb7 {[%emt 0:03:07]} 17. Ng3 $1 {[%emt 0:01:39]} Nd7 {[%emt 0:02:39]} 18. Qd3 {[%emt 0:05:06]} O-O {[%emt 0:01:15]} 19. Qd6 {[%emt 0:00:23]} Rfc8 {[%emt 0:02:07]} 20. Rfa1 {[%emt 0:08:21]} Bc6 {[%emt 0:00:58]} 21. Qxc7 {[%emt 0:07:29]} Rxc7 {[%emt 0:00:04]} 22. f3 {[%emt 0:01:13]} Bf8 {[%emt 0:06:53]} 23. Nf1 {[%emt 0:01:21]} f5 {[%emt 0:11:24]} 24. exf5 {[%emt 0:00:54]} gxf5 {[%emt 0:00:03]} 25. Nfe3 {[%emt 0:00:33]} f4 {[%emt 0:02:36]} 26. Ng4 $1 {[%emt 0:00:05]} Bg7 {[%emt 0:00:18]} 27. Nf2 {[%emt 0:06:51]} Rd8 {[%emt 0:03:12]} 28. Rxa7 {[%emt 0:06:20]} Rxa7 {[%emt 0:00:36]} 29. Rxa7 {[%emt 0:00:02]} Nb6 {[%emt 0:00:14]} 30. Bc1 {[%emt 0:01:27]} (30. Na5 $1 $16 {Bxb4 would now be deadly.} Bxf3 (30... Rxd2 31. Nxc6 Rxc2 32. Ne7+ Kh7 33. Nf5 $18) 31. gxf3 Rxd2 32. Rb7) 30... Nxc4 $14 {[%emt 0:00:46]} 31. bxc4 {[%emt 0:02:04]} e4 {[%emt 0:01:23]} 32. fxe4 {[%emt 0:03:25]} (32. Rc7 $2 e3 33. Kf1 (33. Rxc6 $2 Rd1+ 34. Nxd1 e2 $19) 33... exf2 34. Bxf4 Be8 $19) 32... Bxe4 {[%emt 0:00:33]} 33. Nxe4 {[%emt 0:07:04]} Rd1+ {[%emt 0:00:03]} 34. Kf2 {[%emt 0:00:25]} Rxc1 {[%emt 0:00:04]} 35. b3 {[%emt 0:00:33]} (35. Nxc5 Bd4+ (35... Rxc2+ 36. Kf3 $17) 36. Kf3 Bxc5 37. Ra8+ Kg7 $19) 35... h5 {[%emt 0:04:35]} (35... Bd4+ $14 36. Kf3 Rxc2) 36. Rc7 {[%emt 0:07:22]} (36. Nxc5 $2 Bd4+ (36... Rxc2+ 37. Kf3 $16) 37. Kf3 Bxc5 $19) 36... Bd4+ {[%emt 0:05:49]} 37. Kf3 {[%emt 0:00:08]} Rf1+ {[%emt 0:01:01]} 38. Ke2 {[%emt 0:00:01]} Rg1 {[%emt 0:00:15]} 39. Nxc5 {[%emt 0:00:39]} Rxg2+ {[%emt 0:00:24]} 40. Kf3 {[%emt 0:00:00]} Rxc2 {[%emt 0:00:00]} 41. Kxf4 {[%emt 0:06:27]} Rc3 $2 {[%emt 0:07:20][%mdl 8192]} (41... Bg1 $16 {is tougher.} 42. Ke4 Bxc5 43. Rxc5 Rc3) 42. Ne6 $18 {[%emt 0:01:42]} Bf2 {[%emt 0:00:12]} 43. Kf5 {[%emt 0:02:16]} Bh4 {[%emt 0:11:37]} 44. c5 {[%emt 0:11:44]} Rxb3 {[%emt 0:02:08]} 45. c6 {[%emt 0:00:36]} Rf3+ {[%emt 0:02:12] [#]} 46. Ke4 $1 {[%emt 0:00:22]} Rc3 {[%emt 0:01:35]} 47. Kd5 {[%emt 0:03:47]} (47. Rg7+ $142 Kh8 48. c7 (48. Kd5 Rd3+ 49. Ke5 Ra3 $16)) 47... b3 {[%emt 0:03:49]} 48. Rg7+ {[%emt 0:00:05]} Kh8 {[%emt 0:00:03]} 49. Rb7 {[%emt 0:00:05]} Bf2 $2 {[%emt 0:03:10]} (49... Bg3 $18 50. Nd4 h4 51. Rxb3 (51. Nxb3 Bh2 $18) 51... Rc1) 50. c7 {[%emt 0:02:26]} Bg3 {[%emt 0:01:00] [#]} 51. Rxb3 {[%emt 0:00:11]} ({Weaker is} 51. Kd4 Rc6 $16) (51. Rb8+ $142 $3 {[%mdl 512]} Kh7 52. Rxb3 (52. c8=Q Rxc8 53. Rxb3 Be1 $11) 52... Rxc7 53. Nxc7 (53. Rxg3 Rc1 $18) 53... Bf2 54. Rf3 Bh4 55. Ne8 Kg6 56. Nd6) 1-0

[Event "Chinese League Division-A 2024"]
[Site "Fuling Chongqing"]
[Date "2024.06.26"]
[Round "1.8"]
[White "Gong, Sunle"]
[Black "Wang, Shixu B"]
[Result "1/2-1/2"]
[ECO "E32"]
[WhiteElo "2239"]
[BlackElo "2422"]
[Annotator "RC"]
[PlyCount "134"]
[EventDate "2024.06.28"]
[EventType "team-tourn"]
[EventCountry "CHN"]
[SourceTitle "playchess.com"]
[Source "ChessBase"]
[SourceQuality "1"]
[TimeControl "40/5400+30:1800+30"]

1. d4 {[%emt 0:00:04]} Nf6 {[%emt 0:00:09]} 2. c4 {[%emt 0:00:05]} e6 {[%emt 0:00:05]} 3. Nc3 {[%emt 0:00:14]} Bb4 {[%emt 0:00:09]} 4. Qc2 {[%emt 0:00:05]} d6 {[%emt 0:00:05]} 5. a3 {[%emt 0:01:23]} Bxc3+ {[%emt 0:00:08]} 6. Qxc3 {[%emt 0:00:03]} O-O {[%emt 0:00:25]} 7. Nf3 {[%emt 0:00:12]} b6 {[%emt 0:00:20]} 8. e3 {[%emt 0:01:18]} Bb7 {[%emt 0:00:07]} 9. Be2 {[%emt 0:00:05]} Nbd7 {[%emt 0:03:35]} 10. O-O {[%emt 0:01:20]} Ne4 {[%emt 0:05:17]} 11. Qc2 {[%emt 0:00:06]} f5 {[%emt 0:00:15]} 12. b4 {[%emt 0:00:21]} Rf6 {[%emt 0:10:20]} 13. d5 {[%emt 0:00:44]} exd5 {[%emt 0:06:16]} 14. cxd5 {[%emt 0:00:06]} Bxd5 {[%emt 0:02:01]} 15. Bb2 {[%emt 0:00:14]} Rg6 {[%emt 0:00:20]} 16. Bc4 {[%emt 0:02:48]} Bxc4 {[%emt 0:08:10]} 17. Qxc4+ {[%emt 0:00:05]} Kh8 {[%emt 0:00:35]} 18. Rac1 {[%emt 0:04:30]} c5 {[%emt 0:07:04]} 19. Qf7 {[%emt 0:15:50]} Nef6 {[%emt 0:04:05]} 20. Rfd1 {[%emt 0:05:42]} Qe8 {[%emt 0:04:43]} 21. Qxe8+ {[%emt 0:02:02]} Nxe8 {[%emt 0:00:15]} 22. Rd5 {[%emt 0:01:33]} Nc7 {[%emt 0:12:06]} 23. Rxf5 {[%emt 0:00:14]} Kg8 {[%emt 0:00:27]} 24. Rd1 {[%emt 0:15:19]} Re8 {[%emt 0:05:34]} 25. Rf4 {[%emt 0:01:15]} d5 {[%emt 0:10:24]} 26. Nh4 {[%emt 0:03:23]} Rge6 {[%emt 0:00:36]} 27. Nf5 {[%emt 0:03:45]} Ne5 {[%emt 0:00:09]} 28. bxc5 {[%emt 0:00:31]} bxc5 {[%emt 0:00:25]} 29. Ra4 {[%emt 0:00:14]} Nc4 {[%emt 0:09:40]} 30. Bc3 {[%emt 0:08:23]} Nb5 {[%emt 0:09:11]} 31. Ba1 {[%emt 0:09:10]} Rg6 {[%emt 0:00:49]} 32. Nxg7 {[%emt 0:00:53]} Rxg7 {[%emt 0:01:30]} 33. Bxg7 {[%emt 0:00:07]} Kxg7 {[%emt 0:00:42]} 34. Rxd5 {[%emt 0:00:33]} Nb6 {[%emt 0:01:00]} 35. Rg4+ {[%emt 0:01:16]} Kh8 {[%emt 0:00:26]} 36. Rxc5 {[%emt 0:00:06]} Nxa3 {[%emt 0:00:29]} 37. Ra5 {[%emt 0:00:19]} Rd8 {[%emt 0:00:32]} 38. h4 {[%emt 0:00:16]} Nac4 {[%emt 0:00:15]} 39. Rxa7 {[%emt 0:00:09]} Ne5 {[%emt 0:00:22]} 40. Re4 {[%emt 0:00:00]} Ng6 {[%emt 0:00:00]} 41. h5 {[%emt 0:01:28]} Nf8 {[%emt 0:00:57]} 42. h6 {[%emt 0:00:24]} Rd1+ {[%emt 0:02:25]} 43. Kh2 {[%emt 0:00:04]} Rd6 {[%emt 0:00:02]} 44. Rh4 {[%emt 0:00:55]} Nbd7 {[%emt 0:03:03]} 45. Ra8 {[%emt 0:03:36]} Kg8 {[%emt 0:04:29]} 46. Ra5 {[%emt 0:04:32]} Nf6 {[%emt 0:03:55]} 47. Rha4 {[%emt 0:01:43]} Nd5 {[%emt 0:02:48]} 48. Ra6 {[%emt 0:01:17]} Nb6 {[%emt 0:01:54]} 49. Rg4+ {[%emt 0:00:32]} Kh8 {[%emt 0:00:01]} 50. Rh4 {[%emt 0:00:28]} Kg8 {[%emt 0:00:38]} 51. e4 {[%emt 0:01:00]} Nfd7 {[%emt 0:00:59]} 52. f4 {[%emt 0:02:12]} Kf7 {[%emt 0:03:02]} 53. Ra5 {[%emt 0:01:02]} Rd4 {[%emt 0:00:40]} 54. e5 {[%emt 0:00:53]} Nd5 {[%emt 0:02:09]} 55. Ra2 {[%emt 0:07:38]} Nxe5 {[%emt 0:01:27]} 56. Ra7+ {[%emt 0:06:32]} Ne7 {[%emt 0:00:01]} 57. Kg3 {[%emt 0:10:43]} N5g6 {[%emt 0:01:18]} 58. Rg4 {[%emt 0:00:47]} Kf6 {[%emt 0:02:35]} 59. Kf3 {[%emt 0:03:01]} Rd1 {[%emt 0:00:14]} 60. g3 {[%emt 0:01:48]} Rh1 {[%emt 0:01:18]} 61. Kg2 {[%emt 0:00:29]} Rxh6 {[%emt 0:01:57]} 62. Ra6+ {[%emt 0:01:42]} Kf7 {[%emt 0:00:05]} 63. Kg1 {[%emt 0:00:06]} Rh5 {[%emt 0:00:21]} 64. Kg2 {[%emt 0:04:00]} Rb5 {[%emt 0:00:08]} 65. Kh3 {[%emt 0:00:48]} Rh5+ {[%emt 0:00:14]} 66. Kg2 {[%emt 0:00:05]} Rb5 {[%emt 0:00:02]} 67. Kh3 {[%emt 0:00:10]} Rh5+ {[%emt 0:00:14]} 1/2-1/2

[Event "Chinese League Division-A 2024"]
[Site "Fuling Chongqing"]
[Date "2024.06.26"]
[Round "1.9"]
[White "Xiao, Yiyi"]
[Black "Ju, Wenjun"]
[Result "1/2-1/2"]
[ECO "D02"]
[WhiteElo "2338"]
[BlackElo "2558"]
[Annotator "TA"]
[PlyCount "62"]
[EventDate "2024.06.28"]
[EventType "team-tourn"]
[EventCountry "CHN"]
[SourceTitle "playchess.com"]
[Source "ChessBase"]
[SourceQuality "1"]
[TimeControl "40/5400+30:1800+30"]

{[%evp 12,62,6,-2,10,19,18,16,25,19,0,4,10,9,0,-6,8,9,7,13,26,12,9,20,16,0,0,0,0,0,0,0,0,0,14,0,0,0,0,0,3,0,4,4,17,8,8,8,12,11,14,3,12]} 1. d4 {[%emt 0:00:07]} Nf6 {[%emt 0:00:04]} 2. Nf3 {[%emt 0:00:15]} d5 {[%emt 0:00:42]} 3. Bf4 {[%emt 0:00:31]} c5 {[%emt 0:01:46]} 4. e3 {[%emt 0:01:09]} e6 {[%emt 0:01:01]} 5. Nbd2 {[%emt 0:00:45]} Nc6 {[%emt 0:01:46]} 6. c3 {[%emt 0:00:29]} Be7 {[%emt 0:00:03]} 7. h3 {[%emt 0:00:30]} Bd6 {[%emt 0:00:43]} 8. dxc5 {[%emt 0:02:34]} Bxc5 {[%emt 0:00:06]} 9. Bd3 {[%emt 0:00:19][%cal Bf1d3,Bd3c2,Bc2e4][%mdl 32]} Bd6 {[%emt 0:09:57]} 10. Bxd6 {[%emt 0:05:17]} Qxd6 {[%emt 0:00:03]} 11. O-O {[%emt 0:05:25]} O-O {[%emt 0:07:02]} 12. e4 {[%emt 0:06:47]} Rd8 {[%emt 0:05:31]} 13. Bc2 {[%emt 0:00:36]} dxe4 {[%emt 0:22:37]} 14. Nxe4 {[%emt 0:00:10]} Nxe4 {[%emt 0:00:06]} 15. Bxe4 {[%emt 0:00:07]} Qxd1 {[%emt 0:00:31]} 16. Rfxd1 {[%emt 0:01:50]} Bd7 {[%emt 0:00:03] The position is equal.} 17. Nd4 {[%emt 0:10:54]} Kf8 {[%emt 0:02:51]} 18. Nxc6 {[%emt 0:05:39]} (18. Bxh7 $2 {is the wrong capture.} g6 19. Nf3 Kg7 $19) 18... Bxc6 {[%emt 0:00:06]} 19. Bxc6 {[%emt 0:00:06]} (19. Bxh7 $2 {too greedy.} g6 20. a4 Rxd1+ 21. Rxd1 Bxa4 $19 (21... Kg7 $2 22. Bxg6 Kxg6 23. a5 $19)) 19... bxc6 $11 {[%emt 0:00:02][%mdl 4096] Endgame. KRR-KRR} 20. Kf1 {[%emt 0:00:51]} Ke7 {[%emt 0:00:52]} 21. Ke2 {[%emt 0:01:27]} Rd5 {[%emt 0:06:15]} 22. Rxd5 {[%emt 0:07:05]} exd5 {[%emt 0:05:31] KR-KR} 23. Kd3 {[%emt 0:05:49]} Kd6 {[%emt 0:00:30]} 24. c4 {[%emt 0:05:28]} Re8 {[%emt 0:01:35]} 25. Rc1 {[%emt 0:00:59]} Re5 {[%emt 0:04:54]} 26. Rc3 {[%emt 0:07:02]} dxc4+ {[%emt 0:05:09]} 27. Rxc4 {[%emt 0:00:07]} a5 {[%emt 0:00:17]} 28. Rh4 {[%emt 0:01:44]} h5 {[%emt 0:01:56]} 29. Rd4+ {[%emt 0:02:00]} Kc7 {[%emt 0:02:35]} 30. h4 {[%emt 0:03:39]} Rf5 {[%emt 0:02:10]} 31. f3 {[%emt 0:00:45]} g6 {[%emt 0:01:57] An interesting draw.   Weighted Error Value: White=0.03 (flawless) /Black=0.04 (flawless) .  OK:         	White=7     	Black=8      Best:        	---       	Black=1} 1/2-1/2

[Event "Chinese League Division-A 2024"]
[Site "Fuling Chongqing"]
[Date "2024.06.26"]
[Round "1.10"]
[White "Ni, Shiqun"]
[Black "Jiang, Tianyu"]
[Result "1-0"]
[ECO "C54"]
[WhiteElo "2352"]
[BlackElo "1995"]
[Annotator "RC"]
[PlyCount "63"]
[EventDate "2024.06.28"]
[EventType "team-tourn"]
[EventCountry "CHN"]
[SourceTitle "playchess.com"]
[Source "ChessBase"]
[SourceQuality "1"]
[TimeControl "40/5400+30:1800+30"]

1. e4 {[%emt 0:00:03]} e5 {[%emt 0:00:15]} 2. Nf3 {[%emt 0:00:06]} Nc6 {[%emt 0:00:08]} 3. Bc4 {[%emt 0:00:49]} Bc5 {[%emt 0:00:15]} 4. c3 {[%emt 0:00:35]} Nf6 {[%emt 0:00:18]} 5. d3 {[%emt 0:00:04]} d6 {[%emt 0:00:18]} 6. O-O {[%emt 0:00:10]} a6 {[%emt 0:00:54]} 7. a4 {[%emt 0:00:08]} Ba7 {[%emt 0:00:33]} 8. Re1 {[%emt 0:03:45]} O-O {[%emt 0:11:29]} 9. h3 {[%emt 0:00:22]} h6 {[%emt 0:00:39]} 10. Nbd2 {[%emt 0:00:35]} Re8 {[%emt 0:01:15]} 11. b4 {[%emt 0:01:25]} Be6 {[%emt 0:02:38]} 12. Bxe6 {[%emt 0:00:54]} Rxe6 {[%emt 0:01:26]} 13. Bb2 {[%emt 0:00:07]} Qd7 {[%emt 0:30:33]} 14. Nf1 {[%emt 0:23:19]} Rd8 {[%emt 0:13:45]} 15. b5 {[%emt 0:17:21]} Ne7 {[%emt 0:05:43]} 16. c4 {[%emt 0:00:07]} Ng6 {[%emt 0:05:44]} 17. Ng3 {[%emt 0:03:28]} c6 {[%emt 0:08:15]} 18. Qb3 {[%emt 0:08:08]} Qc7 {[%emt 0:02:08]} 19. d4 {[%emt 0:16:30]} Ree8 {[%emt 0:08:30]} 20. c5 {[%emt 0:08:37]} dxc5 {[%emt 0:03:57]} 21. dxe5 {[%emt 0:00:03]} Nd7 {[%emt 0:01:03]} 22. bxa6 {[%emt 0:00:02]} bxa6 {[%emt 0:00:55]} 23. Nf5 {[%emt 0:01:42]} c4 {[%emt 0:00:45]} 24. Qxc4 {[%emt 0:01:36]} Ndxe5 {[%emt 0:00:28]} 25. Nxe5 {[%emt 0:00:03]} Nxe5 {[%emt 0:00:27]} 26. Bxe5 {[%emt 0:09:11]} Rxe5 {[%emt 0:00:18]} 27. Qxa6 {[%emt 0:00:34]} Rd2 {[%emt 0:00:42]} 28. Re2 {[%emt 0:00:59]} Ra5 {[%emt 0:00:24]} 29. Qc4 {[%emt 0:00:03]} Rc5 {[%emt 0:00:28]} 30. Qxc5 {[%emt 0:00:42]} Rxe2 {[%emt 0:00:46]} 31. Qc3 {[%emt 0:00:24]} f6 {[%emt 0:00:27]} 32. Qc4+ {[%emt 0:00:02]} 1-0

[Event "Chinese League Division-A 2024"]
[Site "Fuling Chongqing"]
[Date "2024.06.26"]
[Round "1.11"]
[White "Huang, Renjie"]
[Black "Jiang, Haochen"]
[Result "1-0"]
[ECO "C65"]
[WhiteElo "2480"]
[BlackElo "2290"]
[Annotator "TA"]
[PlyCount "75"]
[EventDate "2024.06.28"]
[EventType "team-tourn"]
[EventCountry "CHN"]
[SourceTitle "playchess.com"]
[Source "ChessBase"]
[SourceQuality "1"]
[TimeControl "40/5400+30:1800+30"]

{[%evp 12,75,16,0,0,0,0,0,3,3,14,0,8,0,11,16,18,13,5,17,26,20,50,37,52,56,37,48,45,45,36,41,50,36,42,40,45,39,161,161,141,131,358,348,353,345,377,369,566,543,764,792,768,801,801,797,890,839,989,992,1002,1000,29987,29988,29991,29992]} 1. e4 {[%emt 0:00:01]} e5 {[%emt 0:00:08]} 2. Nf3 {[%emt 0:00:05]} Nc6 {[%emt 0:00:06]} 3. Bb5 {[%emt 0:00:05]} Nf6 {[%emt 0:00:08]} 4. d3 {[%emt 0:00:04][%cal Bd2d3,Bd3d4][%mdl 32]} Bc5 {[%emt 0:00:07]} 5. c3 {[%emt 0:00:06]} d6 {[%emt 0:00:11]} 6. O-O {[%emt 0:01:54]} O-O {[%emt 0:00:10]} 7. h3 {[%emt 0:00:27]} Ne7 {[%emt 0:02:47]} 8. d4 {[%emt 0:02:17]} Bb6 {[%emt 0:00:12]} 9. Re1 {[%emt 0:00:08]} Ng6 {[%emt 0:03:14] The position is equal.} 10. Nbd2 {[%emt 0:01:49]} c6 {[%emt 0:11:47]} 11. Bf1 {[%emt 0:00:09]} Re8 {[%emt 0:00:22]} 12. Qc2 {[%emt 0:07:07]} d5 {[%emt 0:14:05]} 13. exd5 {[%emt 0:04:37]} exd4 {[%emt 0:00:52]} 14. Rxe8+ {[%emt 0:00:25]} Qxe8 {[%emt 0:00:58]} 15. c4 {[%emt 0:07:46]} Qe7 {[%emt 0:10:23]} 16. Nb3 {[%emt 0:15:39] d6 is the strong threat.} c5 {[%emt 0:04:12]} 17. Bg5 {[%emt 0:00:57]} Bd7 {[%emt 0:01:52]} 18. Re1 {[%emt 0:04:11]} Qd6 {[%emt 0:14:48]} 19. Bd3 {[%emt 0:10:07]} Ba4 {[%emt 0:04:39]} 20. Qc1 {[%emt 0:04:54]} Re8 {[%emt 0:09:16]} 21. Nbd2 {[%emt 0:11:14][%cal Bb3d2,Bd2e4,Be4c5][%mdl 32]} Bc7 {[%emt 0:01:43] [#]} 22. b4 $1 {[%emt 0:09:11]} cxb4 {[%emt 0:01:41]} 23. Bxf6 {[%emt 0:00:27]} Qxf6 {[%emt 0:04:31]} 24. Ne4 {[%emt 0:00:10]} Qd8 {[%emt 0:06:16] [#]} (24... Qf4 $2 25. Nc5 Qxc1 26. Rxc1 $18) ({Better is} 24... Qe7 $1 $14) 25. Nc5 $1 $36 {[%emt 0:02:08][%mdl 2048] Threatens to win with Bxg6. Black is under strong pressure.} Nf4 {[%emt 0:04:42][%cal Ob7b6] [#]} 26. Bf1 $1 {[%emt 0:00:09]} b5 {[%emt 0:03:39] Black cannot hold the game after this.} (26... Bd7 $16) 27. cxb5 {[%emt 0:01:46]} (27. Nxd4 Rxe1 28. Qxe1 Bb6 $18) 27... Rxe1 {[%emt 0:00:02]} 28. Qxe1 {[%emt 0:00:06]} Bc2 {[%emt 0:00:13]} 29. Nxd4 {[%emt 0:00:21][%cal Bf3d4,Bd4c6,Bc6e7][%mdl 32]} (29. Qxb4 Qxd5 30. Nxd4 Nxh3+ 31. gxh3 Qg5+ 32. Bg2 (32. Kh1 $2 Qf4 $19) 32... Qc1+ 33. Bf1 Qg5+ 34. Bg2 (34. Kh1 $2 Qf4 $19) 34... Qc1+ 35. Bf1 Qg5+ $11) 29... Bg6 {[%emt 0:01:24]} (29... g6 {keeps fighting.} 30. g3 (30. Nxc2 Qd6 $18) 30... Nh5 31. Nxc2 Nxg3) 30. Nc6 {[%emt 0:01:30]} ({Stronger than} 30. Qxb4 Nxh3+ 31. gxh3 Qg5+ 32. Bg2 (32. Kh1 $2 Qf4 $19) 32... Qc1+ 33. Bf1 Qg5+ 34. Bg2 (34. Kh1 $2 Qf4 $19) 34... Qc1+ 35. Bf1 Qg5+ $11) 30... Qf8 {[%emt 0:00:30]} 31. Nd7 {[%emt 0:00:56] Excellent horsemanship.} ({Not} 31. Qxb4 Nxd5 32. Qd4 Qd6 $16) 31... Qa8 {[%emt 0:00:01]} 32. Ne7+ {[%emt 0:02:40]} Kh8 {[%emt 0:00:01]} 33. Qxb4 {[%emt 0:00:11]} Qd8 {[%emt 0:01:27] Dodges d6} 34. d6 {[%emt 0:00:16]} Ba5 {[%emt 0:00:31]} 35. Qxf4 {[%emt 0:00:41]} Qxd7 {[%emt 0:00:01]} 36. Bc4 {[%emt 0:00:20]} Bd8 {[%emt 0:00:59]} 37. Bxf7 {[%emt 0:01:37]} Bb1 {[%emt 0:00:31] [#]} 38. Be6 $1 {[%emt 0:01:08][%mdl 512] Weighted Error Value: White=0.01 (flawless) /Black=0.48.  Loses game:     	---       	Black=1      Mistake:       	---       	Black=2      Inaccurate:     	---       	Black=2      OK:         	White=11    	Black=11     Best:        	White=4     	---        Strong:       	White=2     	---} 1-0

[Event "Chinese League Division-A 2024"]
[Site "Fuling Chongqing"]
[Date "2024.06.26"]
[Round "1.12"]
[White "Wang, Zihang"]
[Black "Xiao, Tong"]
[Result "0-1"]
[ECO "B51"]
[WhiteElo "2028"]
[BlackElo "2518"]
[Annotator "TA"]
[PlyCount "101"]
[EventDate "2024.06.28"]
[EventType "team-tourn"]
[EventCountry "CHN"]
[SourceTitle "playchess.com"]
[Source "ChessBase"]
[SourceQuality "1"]
[TimeControl "40/5400+30:1800+30"]

{[%evp 9,101,18,18,8,24,11,33,27,25,14,18,0,37,44,43,4,26,25,24,24,23,12,19,15,34,35,46,39,39,39,39,39,39,24,30,29,37,0,54,39,52,35,86,30,120,93,145,143,140,151,143,139,220,201,233,213,240,43,82,-11,0,-22,-18,-46,-45,-61,0,-25,-29,-64,-70,-103,-74,-86,-101,-95,-66,-74,-78,-143,-145,-140,-141,-152,-146,-145,-156,-432,-438,-441,-405,-405,-405,-418]} 1. e4 {[%emt 0:00:03]} c5 {[%emt 0:00:10]} 2. Nf3 {[%emt 0:00:10]} d6 {[%emt 0:00:18]} 3. Bb5+ {[%emt 0:01:08]} Nd7 {[%emt 0:00:23]} 4. d4 {[%emt 0:02:02]} cxd4 {[%emt 0:00:13]} 5. Nxd4 {[%emt 0:00:43]} Ngf6 {[%emt 0:01:32]} 6. Bd3 {[%emt 0:00:33]} Nc5 {[%emt 0:03:24]} 7. Nc3 {[%emt 0:01:31]} g6 {[%emt 0:02:22]} 8. f3 {[%emt 0:02:54] White is slightly better.} Bg7 {[%emt 0:02:06]} 9. Be3 {[%emt 0:00:30]} a6 {[%emt 0:02:24]} 10. a4 {[%emt 0:02:31]} h5 {[%emt 0:01:47]} 11. O-O {[%emt 0:06:31]} O-O {[%emt 0:01:51]} 12. Qd2 {[%emt 0:02:57]} Nxd3 {[%emt 0:05:06]} 13. Qxd3 {[%emt 0:08:40]} Qa5 {[%emt 0:02:12]} 14. Rfd1 {[%emt 0:13:39]} Re8 {[%emt 0:04:25]} 15. Nce2 {[%emt 0:23:05]} Qc7 {[%emt 0:14:29]} 16. c4 {[%emt 0:05:32]} b6 {[%emt 0:04:52]} 17. Nc3 {[%emt 0:02:02]} e6 {[%emt 0:02:21]} 18. Rac1 {[%emt 0:05:57]} Bb7 {[%emt 0:00:21]} 19. Nde2 {[%emt 0:01:55]} Bf8 {[%emt 0:08:39]} 20. b3 {[%emt 0:04:20]} Nd7 {[%emt 0:01:56][%cal Bf6d7,Bd7e5,Be5f7][%mdl 32]} 21. Rd2 {[%emt 0:02:10]} Rac8 {[%emt 0:03:34]} 22. Rcd1 {[%emt 0:01:44]} Bc6 {[%emt 0:01:42]} 23. Kh1 {[%emt 0:02:21]} Qb7 {[%emt 0:03:00]} (23... Qb8 $11) 24. Nd4 {[%emt 0:01:34]} Ne5 {[%emt 0:01:51]} 25. Qe2 {[%emt 0:01:19]} Bd7 {[%emt 0:00:37]} (25... Nd7 $14) 26. Bf4 {[%emt 0:01:27]} ({White should try} 26. Qf2 $16) 26... f6 {[%emt 0:05:21]} (26... Nxc4 $11 27. bxc4 e5) 27. Be3 $16 {[%emt 0:01:46]} Kh7 {[%emt 0:01:03]} (27... Nf7 $142) 28. h3 {[%emt 0:00:43]} Nf7 {[%emt 0:01:57]} 29. Qf2 {[%emt 0:01:03]} Bg7 {[%emt 0:04:06] [#]} 30. f4 $1 {[%emt 0:01:55]} e5 {[%emt 0:03:30]} (30... f5 $16) 31. Nde2 $18 {[%emt 0:01:08]} b5 {[%emt 0:06:49]} 32. axb5 {[%emt 0:00:41]} axb5 {[%emt 0:00:40]} 33. cxb5 {[%emt 0:01:52]} (33. f5 $18) 33... exf4 $14 {[%emt 0:03:42] [#]} 34. Bxf4 {[%emt 0:00:31]} ({Better is} 34. Bd4 $1 $16) 34... Bxb5 $11 {[%emt 0:00:06]} 35. Nxb5 {[%emt 0:00:24]} Qxb5 {[%emt 0:00:01]} 36. Qf3 {[%emt 0:00:38]} Qb7 {[%emt 0:02:26]} 37. Rd5 {[%emt 0:00:28][%cal Oe2g3]} Qe7 {[%emt 0:00:04]} ({Black should play} 37... Rc5 $15) 38. Bxd6 {[%emt 0:00:32]} Qxe4 {[%emt 0:00:07]} (38... Nxd6 {simplifies} 39. Rxd6 Qxe4 40. Qxe4 Rxe4 41. Nd4 Rce8) 39. Ng1 {[%emt 0:00:29]} Ng5 $1 {[%emt 0:00:33]} 40. Qg3 {[%emt 0:00:00]} Qc2 {[%emt 0:00:00] And now ...Ne4 would win.} 41. Qd3 {[%emt 0:10:35]} Ne4 {[%emt 0:09:10]} (41... Rc3 {simplifies} 42. Qxc2 Rxc2 43. Kh2 Ne4) 42. Kh2 {[%emt 0:03:20]} Rc3 {[%emt 0:05:42]} 43. Qxc2 {[%emt 0:08:46]} Rxc2 {[%emt 0:00:01]} 44. Bg3 {[%emt 0:03:54]} (44. Nf3 $142) 44... Ra8 $17 {[%emt 0:03:47] Threatens to win with ...Raa2.} 45. Nf3 {[%emt 0:02:49]} Raa2 {[%emt 0:00:25]} 46. Rg1 {[%emt 0:00:57]} Rc3 $40 {[%emt 0:01:08][%csl LRb3,LRf3][%mdl 128] Black is out for blood.} 47. Rf1 {[%emt 0:02:35]} Rxb3 {[%emt 0:00:26] ...Rbb2 would now be deadly. Black is much more active.} 48. Rd4 $2 {[%emt 0:00:52] [#]} (48. Bc7 $17) 48... Rbb2 $1 $19 {[%emt 0:01:11]} 49. Ne1 {[%emt 0:00:58]} (49. Rg1 Nc3) 49... Re2 {[%emt 0:01:08] Strongly threatening ...Nxg3.} 50. Rd1 {[%emt 0:00:45]} g5 {[%emt 0:03:30]} 51. h4 {[%emt 0:01:01] Never resign too early!   Weighted Error Value: White=0.25 (precise) /Black=0.16 (very precise) .  Loses game:     	White=1     	---        Missed win:     	White=1     	---        Mistake:       	White=3     	Black=6      Inaccurate:     	White=4     	Black=2      OK:         	White=16    	Black=19     Best:        	White=1     	Black=2      Strong:       	White=1     	Black=1} 0-1